fUST/lending_fUST_20251029
["ID","MTS","AMOUNT","RATE_DAILY","PERIOD"]
[392579229,1761684657414,-957.05,0.00024109,2]
[392579230,1761684657424,-500.0,0.00024109,2]
[392579231,1761684657434,-500.0,0.00024109,2]
[392579232,1761684657443,-247.32679859,0.00024109,2]
[392579233,1761684657454,-751.61,0.00024109,2]
[392579234,1761684657463,-623.02,0.00024109,2]
[392579235,1761684657473,-984.99,0.00024109,2]
[392579236,1761684657492,-762.88,0.00024109,2]
[392579237,1761684657505,-500.0,0.00024109,2]
[392579238,1761684657518,-755.56,0.00024109,2]
[392579239,1761684657529,-500.0,0.00024109,2]
[392579240,1761684657540,-640.15,0.00024109,2]
[392579241,1761684657551,-500.0,0.00024109,2]
[392579242,1761684657563,-1050.98,0.00024109,2]
[392579243,1761684657573,-500.0,0.00024109,2]
[392579244,1761684657584,-500.0,0.00024109,2]
[392579245,1761684657597,-685.53,0.00024109,2]
[392579246,1761684657607,-696.01,0.00024109,2]
[392579247,1761684657618,-3716.26,0.00024109,2]
[392579248,1761684657630,-500.0,0.00024109,2]
[392579249,1761684657640,-500.0,0.00024109,2]
[392579250,1761684657651,-638.63790535,0.00024109,2]
[392579251,1761684657662,-1465.23,0.00024109,2]
[392579252,1761684657674,-500.0,0.00024109,2]
[392579253,1761684657933,-500.0,0.00024109,2]
[392579254,1761684657943,-500.0,0.00024109,2]
[392579255,1761684657953,-500.0,0.00024109,2]
[392579256,1761684657963,-528.4,0.00024109,2]
[392579257,1761684657973,-500.0,0.00024109,2]
[392579258,1761684657982,-891.88,0.00024109,2]
[392579259,1761684657992,-2371.14,0.00024109,2]
[392579260,1761684658003,-598.51,0.00024109,2]
[392579261,1761684658012,-500.0,0.00024109,2]
[392579262,1761684658023,-741.68,0.00024109,2]
[392579263,1761684658033,-500.0,0.00024109,2]
[392579264,1761684658043,-500.0,0.00024109,2]
[392579265,1761684658052,-296.87607786,0.00024109,2]
[392579266,1761684658063,-1289.61,0.00024109,2]
[392579267,1761684658074,-500.0,0.00024109,2]
[392579268,1761684658084,-584.89,0.00024109,2]
[392579269,1761684658094,-500.0,0.00024109,2]
[392579270,1761684658104,-960.71,0.00024109,2]
[392579271,1761684658114,-642.85,0.00024109,2]
[392579272,1761684658124,-500.0,0.00024109,2]
[392579273,1761684658134,-1384.85,0.00024109,2]
[392579274,1761684658143,-1494.95,0.00024109,2]
[392579275,1761684658152,-526.78,0.00024109,2]
[392579276,1761684658162,-921.96,0.00024109,2]
[392579277,1761684658172,-830.95,0.00024109,2]
[392579278,1761684658181,-174.60103869,0.00024109,2]
[392579279,1761684658191,-1687.31,0.00024109,2]
[392579280,1761684658201,-500.0,0.00024109,2]
[392579281,1761684658210,-953.15,0.00024109,2]
[392579282,1761684658220,-2031.7,0.00024109,2]
[392579283,1761684658230,-746.41,0.00024109,2]
[392579284,1761684658239,-1324.25,0.00024109,2]
[392579285,1761684658249,-500.0,0.00024109,2]
[392579286,1761684658258,-920.67,0.00024109,2]
[392579287,1761684658268,-1110.59,0.00024109,2]
[392579288,1761684658278,-500.0,0.00024109,2]
[392579289,1761684658287,-225.28113906,0.00024109,2]
[392579290,1761684658297,-500.0,0.00024109,2]
[392579291,1761684658307,-996.9,0.00024109,2]
[392579292,1761684658316,-1509.24,0.00024109,2]
[392579293,1761684658326,-555.99,0.00024109,2]
[392579294,1761684658336,-500.0,0.00024109,2]
[392579295,1761684658346,-1004.61,0.00024109,2]
[392579296,1761684658355,-669.33,0.00024109,2]
[392579297,1761684658367,-500.0,0.00024109,2]
[392579298,1761684658377,-597.66,0.00024109,2]
[392579299,1761684658387,-522.76,0.00024109,2]
[392579300,1761684658397,-668.12,0.00024109,2]
[392579301,1761684658406,-500.0,0.00024109,2]
[392579302,1761684658417,-966.05,0.00024109,2]
[392579303,1761684658427,-500.0,0.00024109,2]
[392579304,1761684658437,-1000.0,0.00024121,2]
[392579305,1761684658446,-410779.98308672,0.00024142,2]
[392579306,1761684658456,-80851.91879769,0.00024142,2]
[392579307,1761684658465,-360.0,0.00024156,2]
[392579308,1761684658475,-2500.0,0.00024164,2]
[392579309,1761684658485,-1192.24826342,0.00024164,2]
[392579310,1761684658495,-2500.0,0.00024164,2]
[392579311,1761684658505,-315.73777014,0.00024164,2]
[392579312,1761684658519,-500.0,0.00024173,2]
[392579313,1761684658528,-593.49243116,0.00024173,2]
[392579314,1761684658538,-500.0,0.00024173,2]
[392579315,1761684658548,-150.0,0.00024173,2]
[392579316,1761684658559,-500.0,0.00024212,2]
[392579317,1761684658568,-168.0,0.00024221,2]
[392579318,1761684658578,-500.0,0.00024225,2]
[392579319,1761684658591,-700.0,0.00024233,2]
[392579320,1761684658601,-190.10603416,0.00024241,2]
[392579321,1761684658610,-317.4447065,0.00024263,2]
[392579322,1761684658620,-1500.0,0.00024296,2]
[392579323,1761684658629,-1500.0,0.00024296,2]
[392579324,1761684658639,-468.12639994,0.00024296,2]
[392579325,1761684658648,-1138.07008123,0.00024296,2]
[392579326,1761684658658,-1500.0,0.00024296,2]
[392579327,1761684658668,-1500.0,0.00024296,2]
[392579328,1761684658677,-715.60389223,0.00024296,2]
[392579329,1761684658686,-1500.0,0.00024296,2]
[392579330,1761684658695,-1070.91427546,0.00024296,2]
[392579331,1761684658704,-1500.0,0.00024296,2]
[392579332,1761684658713,-1054.38715842,0.00024296,2]
[392579333,1761684658723,-392.39293304,0.00024337,2]
[392579334,1761684658732,-500.0,0.00024374,2]
[392579335,1761684658741,-500.0,0.00024377,2]
[392579336,1761684658750,-500.0,0.00024383,2]
[392579337,1761684658759,-959.62,0.00024383,2]
[392579338,1761684658769,-540.46,0.00024383,2]
[392579339,1761684658778,-500.0,0.00024383,2]
[392579340,1761684658787,-500.0,0.00024383,2]
[392579341,1761684658797,-575.48,0.00024383,2]
[392579342,1761684658806,-374.59256222,0.00024383,2]
[392579343,1761684658816,-500.0,0.00024383,2]
[392579344,1761684658826,-500.0,0.00024383,2]
[392579345,1761684658836,-500.0,0.00024383,2]
[392579346,1761684658845,-500.0,0.00024383,2]
[392579347,1761684658854,-500.0,0.00024383,2]
[392579348,1761684658864,-500.0,0.00024383,2]
[392579349,1761684658873,-500.0,0.00024383,2]
[392579350,1761684658882,-500.0,0.00024383,2]
[392579351,1761684658892,-500.0,0.00024383,2]
[392579352,1761684658901,-594.14,0.00024383,2]
[392579353,1761684658910,-500.0,0.00024383,2]
[392579354,1761684658920,-500.0,0.00024383,2]
[392579355,1761684658930,-648.27,0.00024383,2]
[392579356,1761684658940,-2433.62,0.00024383,2]
[392579357,1761684658950,-500.0,0.00024383,2]
[392579358,1761684658960,-500.0,0.00024383,2]
[392579359,1761684658970,-188.47035584,0.00024383,2]
[392579360,1761684658979,-500.0,0.00024383,2]
[392579361,1761684658988,-500.0,0.00024383,2]
[392579362,1761684658998,-500.0,0.00024383,2]
[392579363,1761684659009,-500.0,0.00024383,2]
[392579364,1761684659019,-500.0,0.00024383,2]
[392579365,1761684659029,-500.0,0.00024383,2]
[392579366,1761684659038,-940.28,0.00024383,2]
[392579367,1761684659047,-500.0,0.00024383,2]
[392579368,1761684659057,-500.0,0.00024383,2]
[392579369,1761684659066,-580.44,0.00024383,2]
[392579370,1761684659075,-323.16,0.00024383,2]
[392579371,1761684659084,-500.0,0.00024383,2]
[392579372,1761684659093,-500.0,0.00024383,2]
[392579373,1761684659102,-500.0,0.00024383,2]
[392579374,1761684659111,-500.0,0.00024383,2]
[392579375,1761684659120,-500.0,0.00024383,2]
[392579376,1761684659130,-500.0,0.00024383,2]
[392579377,1761684659139,-728.95,0.00024383,2]
[392579378,1761684659148,-500.0,0.00024383,2]
[392579379,1761684659158,-500.0,0.00024383,2]
[392579380,1761684659168,-500.0,0.00024383,2]
[392579381,1761684659178,-500.0,0.00024383,2]
[392579382,1761684659187,-500.0,0.00024383,2]
[392579383,1761684659196,-500.0,0.00024383,2]
[392579384,1761684659206,-500.0,0.00024383,2]
[392579385,1761684659215,-557.52,0.00024383,2]
[392579386,1761684659225,-500.0,0.00024383,2]
[392579387,1761684659234,-502.08,0.00024383,2]
[392579388,1761684659243,-500.0,0.00024383,2]
[392579389,1761684659252,-500.0,0.00024383,2]
[392579390,1761684659261,-500.0,0.00024383,2]
[392579391,1761684659270,-500.0,0.00024383,2]
[392579392,1761684659280,-500.0,0.00024383,2]
[392579393,1761684659289,-500.0,0.00024383,2]
[392579394,1761684659298,-628.01,0.00024383,2]
[392579395,1761684659309,-793.46,0.00024383,2]
[392579396,1761684659319,-500.0,0.00024383,2]
[392579397,1761684659328,-500.0,0.00024383,2]
[392579398,1761684659338,-667.98,0.00024383,2]
[392579399,1761684659347,-896.12,0.00024383,2]
[392579400,1761684659356,-500.0,0.00024383,2]
[392579401,1761684659366,-500.0,0.00024383,2]
[392579402,1761684659376,-515.05,0.00024383,2]
[392579403,1761684659385,-500.0,0.00024383,2]
[392579404,1761684659395,-536.02,0.00024383,2]
[392579405,1761684659404,-513.34,0.00024383,2]
[392579406,1761684659414,-500.0,0.00024383,2]
[392579407,1761684659423,-611.56098647,0.00024383,2]
[392579408,1761684659433,-500.0,0.00024383,2]
[392579409,1761684659442,-500.0,0.00024383,2]
[392579410,1761684659452,-306.79150777,0.00024383,2]
[392579411,1761684659463,-500.0,0.00024383,2]
[392579412,1761684659472,-500.0,0.00024383,2]
[392579413,1761684659482,-500.0,0.00024383,2]
[392579414,1761684659492,-624.67,0.00024383,2]
[392579415,1761684659501,-500.0,0.00024383,2]
[392579416,1761684659514,-854.24,0.00024383,2]
[392579417,1761684659526,-500.0,0.00024383,2]
[392579418,1761684659537,-995.13,0.00024383,2]
[392579419,1761684659547,-2418.13,0.00024383,2]
[392579420,1761684659558,-500.0,0.00024383,2]
[392579421,1761684659569,-500.0,0.00024383,2]
[392579422,1761684659578,-500.0,0.00024383,2]
[392579423,1761684659590,-500.0,0.00024383,2]
[392579424,1761684659599,-726.0,0.00024383,2]
[392579425,1761684659608,-509.83,0.00024383,2]
[392579426,1761684659618,-696.15,0.00024383,2]
[392579427,1761684659629,-500.0,0.00024383,2]
[392579428,1761684659639,-500.0,0.00024383,2]
[392579429,1761684659648,-1006.51,0.00024383,2]
[392579430,1761684659659,-500.0,0.00024383,2]
[392579431,1761684659671,-812.22,0.00024383,2]
[392579432,1761684659680,-500.0,0.00024383,2]
[392579433,1761684659690,-591.11,0.00024383,2]
[392579434,1761684659700,-500.0,0.00024383,2]
[392579435,1761684659710,-500.0,0.00024383,2]
[392579436,1761684659720,-1144.75,0.00024383,2]
[392579437,1761684659732,-500.0,0.00024383,2]
[392579438,1761684659742,-677.49,0.00024383,2]
[392579439,1761684659752,-878.79,0.00024383,2]
[392579440,1761684659762,-554.59,0.00024383,2]
[392579441,1761684659771,-826.78,0.00024383,2]
[392579442,1761684659781,-775.41,0.00024383,2]
[392579443,1761684659790,-500.0,0.00024383,2]
[392579444,1761684659801,-1677.72,0.00024383,2]
[392579445,1761684659812,-511.98,0.00024383,2]
[392579446,1761684659821,-500.0,0.00024383,2]
[392579447,1761684659831,-500.0,0.00024383,2]
[392579448,1761684659842,-957.05,0.00024383,2]
[392579449,1761684659852,-500.0,0.00024383,2]
[392579450,1761684659862,-500.0,0.00024383,2]
[392579451,1761684659872,-751.61,0.00024383,2]
[392579452,1761684659882,-623.02,0.00024383,2]
[392579453,1761684659891,-984.99,0.00024383,2]
[392579454,1761684659900,-762.88,0.00024383,2]
[392579455,1761684659909,-500.0,0.00024383,2]
[392579456,1761684659919,-755.56,0.00024383,2]
[392579457,1761684659928,-520.93189437,0.00024383,2]
[392579458,1761684659938,-640.15,0.00024383,2]
[392579459,1761684659948,-500.0,0.00024383,2]
[392579460,1761684659957,-1050.98,0.00024383,2]
[392579461,1761684659966,-500.0,0.00024383,2]
[392579462,1761684659976,-500.0,0.00024383,2]
[392579463,1761684659985,-685.53,0.00024383,2]
[392579464,1761684659995,-696.01,0.00024383,2]
[392579465,1761684660004,-3716.26,0.00024383,2]
[392579466,1761684660014,-500.0,0.00024383,2]
[392579467,1761684660023,-500.0,0.00024383,2]
[392579468,1761684660032,-1465.23,0.00024383,2]
[392579469,1761684660041,-500.0,0.00024383,2]
[392579470,1761684660052,-500.0,0.00024383,2]
[392579471,1761684660062,-500.0,0.00024383,2]
[392579472,1761684660071,-500.0,0.00024383,2]
[392579473,1761684660081,-528.4,0.00024383,2]
[392579474,1761684660091,-500.0,0.00024383,2]
[392579475,1761684660100,-891.88,0.00024383,2]
[392579476,1761684660109,-2371.14,0.00024383,2]
[392579477,1761684660118,-598.51,0.00024383,2]
[392579478,1761684660127,-500.0,0.00024383,2]
[392579479,1761684660136,-741.68,0.00024383,2]
[392579480,1761684660145,-500.0,0.00024383,2]
[392579481,1761684660154,-500.0,0.00024383,2]
[392579482,1761684660164,-1289.61,0.00024383,2]
[392579483,1761684660173,-584.89,0.00024383,2]
[392579484,1761684660184,-500.0,0.00024383,2]
[392579485,1761684660193,-500.0,0.00024383,2]
[392579486,1761684660202,-960.71,0.00024383,2]
[392579487,1761684660212,-642.85,0.00024383,2]
[392579488,1761684660221,-500.0,0.00024383,2]
[392579489,1761684660230,-1384.85,0.00024383,2]
[392579490,1761684660240,-1494.95,0.00024383,2]
[392579491,1761684660249,-526.78,0.00024383,2]
[392579492,1761684660297,-921.96,0.00024383,2]
[392579493,1761684660308,-830.95,0.00024383,2]
[392579494,1761684660317,-1687.31,0.00024383,2]
[392579495,1761684660326,-500.0,0.00024383,2]
[392579496,1761684660335,-953.15,0.00024383,2]
[392579497,1761684660345,-2031.7,0.00024383,2]
[392579498,1761684660355,-746.41,0.00024383,2]
[392579499,1761684660364,-1324.25,0.00024383,2]
[392579500,1761684660373,-500.0,0.00024383,2]
[392579501,1761684660383,-920.67,0.00024383,2]
[392579502,1761684660393,-1110.59,0.00024383,2]
[392579503,1761684660403,-500.0,0.00024383,2]
[392579504,1761684660411,-500.0,0.00024383,2]
[392579505,1761684660421,-996.9,0.00024383,2]
[392579506,1761684660430,-1509.24,0.00024383,2]
[392579507,1761684660440,-555.99,0.00024383,2]
[392579508,1761684660449,-500.0,0.00024383,2]
[392579509,1761684660458,-1004.61,0.00024383,2]
[392579510,1761684660468,-669.33,0.00024383,2]
[392579511,1761684660478,-500.0,0.00024383,2]
[392579512,1761684660488,-597.66,0.00024383,2]
[392579513,1761684660497,-522.76,0.00024383,2]
[392579514,1761684660507,-668.12,0.00024383,2]
[392579515,1761684660523,-500.0,0.00024383,2]
[392579516,1761684660532,-966.05,0.00024383,2]
[392579517,1761684660541,-500.0,0.00024383,2]
[392579518,1761684660550,-317.4447065,0.00024409,9]
[392579519,1761684660560,-168.0,0.0002442,2]
[392579520,1761684660569,-500.0,0.00024422,2]
[392579521,1761684660578,-500.0,0.00024465,2]
[392579522,1761684660589,-700.0,0.00024478,2]
[392579523,1761684660599,-500.0,0.00024481,2]
[392579524,1761684660608,-392.39293304,0.00024483,9]
[392579525,1761684660617,-367.86837473,0.00024499,9]
[392579526,1761684660627,-618.2905996,0.00024499,2]
[392579527,1761684660635,-500.52718912,0.00024505,2]
[392579528,1761684660644,-8120.9247551,0.00024552,2]
[392579529,1761684660653,-317.4447065,0.00024555,17]
[392579530,1761684660662,-367.86837473,0.00024569,13]
[392579531,1761684660673,-392.39293304,0.0002463,17]
[392579532,1761684660682,-168.0,0.00024635,2]
[392579533,1761684660692,-367.86837473,0.0002464,16]
[392579534,1761684660701,-700.0,0.00024642,2]
[392579535,1761684660711,-73561.95336905,0.0002465,2]
[392579536,1761684660729,-80940.37768978,0.0002465,2]
[392579537,1761684660739,-1040.14872221,0.0002465,2]
[392579538,1761684660748,-509.7357608,0.0002465,2]
[392579539,1761684660757,-500.0,0.00024657,2]
[392579540,1761684660766,-959.62,0.00024657,2]
[392579541,1761684660775,-540.46,0.00024657,2]
[392579542,1761684660784,-392.03711766,0.00024657,2]
[392579543,1761684660793,-500.0,0.00024657,2]
[392579544,1761684660802,-575.48,0.00024657,2]
[392579545,1761684660812,-500.0,0.00024657,2]
[392579546,1761684660821,-500.0,0.00024657,2]
[392579547,1761684660830,-500.0,0.00024657,2]
[392579548,1761684660839,-500.0,0.00024657,2]
[392579549,1761684660848,-557.61756605,0.00024657,2]
[392579550,1761684660857,-500.0,0.00024657,2]
[392579551,1761684660866,-455.01420865,0.00024657,2]
[392579552,1761684660875,-500.0,0.00024657,2]
[392579553,1761684660884,-500.0,0.00024657,2]
[392579554,1761684660894,-594.14,0.00024657,2]
[392579555,1761684660903,-500.0,0.00024657,2]
[392579556,1761684660911,-500.0,0.00024657,2]
[392579557,1761684660922,-648.27,0.00024657,2]
[392579558,1761684660931,-2433.62,0.00024657,2]
[392579559,1761684660941,-500.0,0.00024657,2]
[392579560,1761684660949,-500.0,0.00024657,2]
[392579561,1761684660959,-533.54731038,0.00024657,2]
[392579562,1761684660968,-500.0,0.00024657,2]
[392579563,1761684660977,-500.0,0.00024657,2]
[392579564,1761684660986,-500.0,0.00024657,2]
[392579565,1761684660996,-500.0,0.00024657,2]
[392579566,1761684661005,-500.0,0.00024657,2]
[392579567,1761684661014,-940.28,0.00024657,2]
[392579568,1761684661024,-500.0,0.00024657,2]
[392579569,1761684661032,-500.0,0.00024657,2]
[392579570,1761684661042,-580.44,0.00024657,2]
[392579571,1761684661051,-323.16,0.00024657,2]
[392579572,1761684661059,-500.0,0.00024657,2]
[392579573,1761684661069,-500.0,0.00024657,2]
[392579574,1761684661078,-500.0,0.00024657,2]
[392579575,1761684661087,-500.0,0.00024657,2]
[392579576,1761684661096,-500.0,0.00024657,2]
[392579577,1761684661106,-500.0,0.00024657,2]
[392579578,1761684661115,-728.95,0.00024657,2]
[392579579,1761684661124,-500.0,0.00024657,2]
[392579580,1761684661133,-500.0,0.00024657,2]
[392579581,1761684661142,-500.0,0.00024657,2]
[392579582,1761684661152,-500.0,0.00024657,2]
[392579583,1761684661161,-500.0,0.00024657,2]
[392579584,1761684661172,-500.0,0.00024657,2]
[392579585,1761684661181,-500.0,0.00024657,2]
[392579586,1761684661191,-557.52,0.00024657,2]
[392579587,1761684661201,-500.0,0.00024657,2]
[392579588,1761684661211,-502.08,0.00024657,2]
[392579589,1761684661220,-500.0,0.00024657,2]
[392579590,1761684661229,-500.0,0.00024657,2]
[392579591,1761684661237,-500.0,0.00024657,2]
[392579592,1761684661246,-500.0,0.00024657,2]
[392579593,1761684661255,-500.0,0.00024657,2]
[392579594,1761684661265,-500.0,0.00024657,2]
[392579595,1761684661275,-628.01,0.00024657,2]
[392579596,1761684661285,-793.46,0.00024657,2]
[392579597,1761684661294,-500.0,0.00024657,2]
[392579598,1761684661303,-500.0,0.00024657,2]
[392579599,1761684661314,-667.98,0.00024657,2]
[392579600,1761684661323,-896.12,0.00024657,2]
[392579601,1761684661332,-500.0,0.00024657,2]
[392579602,1761684661342,-500.0,0.00024657,2]
[392579603,1761684661351,-515.05,0.00024657,2]
[392579604,1761684661360,-500.0,0.00024657,2]
[392579605,1761684661369,-536.02,0.00024657,2]
[392579606,1761684661379,-513.34,0.00024657,2]
[392579607,1761684661388,-500.0,0.00024657,2]
[392579608,1761684661397,-500.0,0.00024657,2]
[392579609,1761684661406,-500.0,0.00024657,2]
[392579610,1761684661415,-500.0,0.00024657,2]
[392579611,1761684661426,-500.0,0.00024657,2]
[392579612,1761684661435,-500.0,0.00024657,2]
[392579613,1761684661444,-624.67,0.00024657,2]
[392579614,1761684661454,-500.0,0.00024657,2]
[392579615,1761684661464,-854.24,0.00024657,2]
[392579616,1761684661474,-500.0,0.00024657,2]
[392579617,1761684661483,-995.13,0.00024657,2]
[392579618,1761684661492,-2418.13,0.00024657,2]
[392579619,1761684661502,-500.0,0.00024657,2]
[392579620,1761684661513,-500.0,0.00024657,2]
[392579621,1761684661525,-500.0,0.00024657,2]
[392579622,1761684661535,-500.0,0.00024657,2]
[392579623,1761684661545,-726.0,0.00024657,2]
[392579624,1761684661555,-509.83,0.00024657,2]
[392579625,1761684661564,-618.41657661,0.00024657,2]
[392579626,1761684661577,-77.73342339,0.00024657,2]
[392579627,1761684661588,-500.0,0.00024657,2]
[392579628,1761684661598,-500.0,0.00024657,2]
[392579629,1761684661607,-1006.51,0.00024657,2]
[392579630,1761684661617,-500.0,0.00024657,2]
[392579631,1761684661626,-812.22,0.00024657,2]
[392579632,1761684661635,-500.0,0.00024657,2]
[392579633,1761684661644,-591.11,0.00024657,2]
[392579634,1761684661653,-500.0,0.00024657,2]
[392579635,1761684661662,-500.0,0.00024657,2]
[392579636,1761684661672,-1144.75,0.00024657,2]
[392579637,1761684661680,-500.0,0.00024657,2]
[392579638,1761684661690,-677.49,0.00024657,2]
[392579639,1761684661699,-878.79,0.00024657,2]
[392579640,1761684661709,-554.59,0.00024657,2]
[392579641,1761684661718,-826.78,0.00024657,2]
[392579642,1761684661727,-775.41,0.00024657,2]
[392579643,1761684661737,-500.0,0.00024657,2]
[392579644,1761684661752,-1677.72,0.00024657,2]
[392579645,1761684661761,-511.98,0.00024657,2]
[392579646,1761684661771,-500.0,0.00024657,2]
[392579647,1761684661780,-500.0,0.00024657,2]
[392579648,1761684661789,-957.05,0.00024657,2]
[392579649,1761684661803,-500.0,0.00024657,2]
[392579650,1761684661812,-500.0,0.00024657,2]
[392579651,1761684661822,-751.61,0.00024657,2]
[392579652,1761684661832,-623.02,0.00024657,2]
[392579653,1761684661841,-984.99,0.00024657,2]
[392579654,1761684661850,-762.88,0.00024657,2]
[392579655,1761684661859,-500.0,0.00024657,2]
[392579656,1761684661868,-755.56,0.00024657,2]
[392579657,1761684661877,-640.15,0.00024657,2]
[392579658,1761684661886,-500.0,0.00024657,2]
[392579659,1761684661895,-1050.98,0.00024657,2]
[392579660,1761684661904,-500.0,0.00024657,2]
[392579661,1761684661913,-500.0,0.00024657,2]
[392579662,1761684661922,-685.53,0.00024657,2]
[392579663,1761684661932,-696.01,0.00024657,2]
[392579664,1761684661942,-3716.26,0.00024657,2]
[392579665,1761684661951,-500.0,0.00024657,2]
[392579666,1761684661960,-500.0,0.00024657,2]
[392579667,1761684661970,-1465.23,0.00024657,2]
[392579668,1761684661979,-500.0,0.00024657,2]
[392579669,1761684661988,-500.0,0.00024657,2]
[392579670,1761684661998,-500.0,0.00024657,2]
[392579671,1761684662008,-500.0,0.00024657,2]
[392579672,1761684662017,-528.4,0.00024657,2]
[392579673,1761684662027,-500.0,0.00024657,2]
[392579674,1761684662036,-891.88,0.00024657,2]
[392579675,1761684662046,-2371.14,0.00024657,2]
[392579676,1761684662055,-598.51,0.00024657,2]
[392579677,1761684662064,-500.0,0.00024657,2]
[392579678,1761684662074,-741.68,0.00024657,2]
[392579679,1761684662083,-500.0,0.00024657,2]
[392579680,1761684662091,-282.28124715,0.00024657,2]
[392579681,1761684662101,-1289.61,0.00024657,2]
[392579682,1761684662111,-584.89,0.00024657,2]
[392579683,1761684662120,-500.0,0.00024657,2]
[392579684,1761684662129,-500.0,0.00024657,2]
[392579685,1761684662138,-960.71,0.00024657,2]
[392579686,1761684662147,-642.85,0.00024657,2]
[392579687,1761684662156,-500.0,0.00024657,2]
[392579688,1761684662166,-1384.85,0.00024657,2]
[392579689,1761684662176,-1494.95,0.00024657,2]
[392579690,1761684662185,-526.78,0.00024657,2]
[392579691,1761684662194,-921.96,0.00024657,2]
[392579692,1761684662203,-830.95,0.00024657,2]
[392579693,1761684662212,-1687.31,0.00024657,2]
[392579694,1761684662222,-397.23006389,0.00024657,2]
[392579695,1761684662231,-953.15,0.00024657,2]
[392579696,1761684662241,-2031.7,0.00024657,2]
[392579697,1761684662250,-746.41,0.00024657,2]
[392579698,1761684662259,-1324.25,0.00024657,2]
[392579699,1761684662268,-314.36159207,0.00024657,2]
[392579700,1761684662277,-920.67,0.00024657,2]
[392579701,1761684662286,-1110.59,0.00024657,2]
[392579702,1761684662295,-500.0,0.00024657,2]
[392579703,1761684662305,-500.0,0.00024657,2]
[392579704,1761684662314,-996.9,0.00024657,2]
[392579705,1761684662324,-1509.24,0.00024657,2]
[392579706,1761684662333,-555.99,0.00024657,2]
[392579707,1761684662342,-500.0,0.00024657,2]
[392579708,1761684662351,-1004.61,0.00024657,2]
[392579709,1761684662360,-669.33,0.00024657,2]
[392579710,1761684662369,-500.0,0.00024657,2]
[392579711,1761684662379,-597.66,0.00024657,2]
[392579712,1761684662388,-522.76,0.00024657,2]
[392579713,1761684662397,-668.12,0.00024657,2]
[392579714,1761684662406,-500.0,0.00024657,2]
[392579715,1761684662416,-966.05,0.00024657,2]
[392579716,1761684662426,-500.0,0.00024657,2]
[392579717,1761684662435,-200.0,0.00024658,15]
[392579718,1761684662444,-151.367057,0.00024658,7]
[392579719,1761684662454,-200.0,0.00024658,2]
[392579720,1761684662463,-380.0,0.00024658,2]
[392579721,1761684662473,-1500.0,0.00024668,2]
[392579722,1761684662482,-150.0,0.00024673,2]
[392579723,1761684662492,-33001.21,0.000247,7]
[392579724,1761684662502,-317.4447065,0.00024701,25]
[392579725,1761684662511,-460.0,0.00024704,2]
[392579726,1761684662524,-367.86837473,0.00024711,20]
[392579727,1761684662534,-495.69691005,0.00024712,2]
[392579728,1761684662543,-3000.0,0.00024712,2]